[Event "Turkish Youth Championship 2024"]
[Site "Samsun"]
[Date "2024.05.19"]
[Round "2"]
[White "Baki, Huseyin Kaan"]
[Black "Buyuk, Ecrin Efsa"]
[Result "0-1"]
[ECO "B15"]
[WhiteElo "1527"]
[BlackElo "1892"]
[Annotator "NA RC"]
[PlyCount "88"]
[EventDate "2024.05.18"]
[EventType "swiss"]
[EventCountry "TUR"]
[SourceTitle "playchess.com"]
[Source "ChessBase"]
[SourceQuality "1"]
[TimeControl "5400+30"]

1. e4 {[%emt 0:01:00]} c6 {[%emt 0:01:00]} 2. d4 {[%emt 0:00:00]} d5 {[%emt 0:00:30]} 3. Nc3 {[%emt 0:00:00]} dxe4 {[%emt 0:00:30]} 4. Nxe4 {[%emt 0:00:30]} Nf6 {[%emt 0:00:00]} 5. Nxf6+ {[%emt 0:00:00]} exf6 {[%emt 0:00:00]} 6. Nf3 {[%emt 0:01:00]} Bd6 {[%emt 0:00:00]} 7. Bd3 {[%emt 0:02:30] 7.Bd3 scores better than 7.Be2.} O-O {[%emt 0:00:00]} 8. h3 {[%emt 0:01:30] B15: Caro-Kann: 3 Nc3: 3...g6 and 3...dxe4 4 Nxe4 Nf6 5 Nxf6+ exf6.} Re8+ {[%emt 0:00:30]} 9. Be3 {[%emt 0:00:30]} Nd7 {[%emt 0:14:30]} 10. O-O {[%emt 0:02:30]} Nf8 {[%emt 0:00:00]} 11. Qd2 {[%emt 0:00:30]} Be6 {[%emt 0:14:00]} 12. Rfe1 {[%emt 0:17:30]} Qb8 $146 {[%emt 0:04:30]} ({Predecessor:} 12... Ng6 13. Bxg6 hxg6 14. Bf4 Qc7 15. Bxd6 Qxd6 16. c3 Bd5 17. Re3 Re6 18. Rae1 Bxa2 {0-1 Erigaisi,A (2559)-Naroditsky,D (2621) Chess.com Bullet op1 blitz 2020 (14)}) 13. b3 {[%emt 0:02:30]} a5 {[%emt 0:08:30]} 14. c3 {[%emt 0:00:30]} Qc7 {[%emt 0:02:30]} 15. Rac1 {[%emt 0:06:30]} Ng6 {[%emt 0:02:30]} 16. Qc2 {[%emt 0:04:30]} Qd7 {[%emt 0:02:30]} 17. Bf1 {[%emt 0:04:30]} Rac8 {[%emt 0:01:30]} 18. c4 {[%emt 0:01:30]} Bf5 {[%emt 0:03:30]} 19. Qd2 {[%emt 0:00:30]} Bb4 {[%emt 0:00:00]} 20. Qb2 {[%emt 0:03:30]} Bxe1 {[%emt 0:01:00]} 21. Rxe1 {[%emt 0:00:00]} b5 {[%emt 0:08:30]} 22. Qa3 {[%emt 0:04:00]} ({White should play} 22. d5) 22... Ra8 {[%emt 0:05:30]} 23. Qc5 {[%emt 0:02:30]} b4 {[%emt 0:01:30]} 24. Rd1 {[%emt 0:01:30]} Rec8 {[%emt 0:02:30]} 25. Kh2 {[%emt 0:03:30]} Bc2 {[%emt 0:00:30]} 26. Rc1 {[%emt 0:01:30]} Be4 {[%emt 0:02:30]} 27. Nd2 {[%emt 0:00:30]} Bf5 {[%emt 0:00:00]} 28. g3 {[%emt 0:01:30]} Nf8 {[%emt 0:01:00]} 29. Bg2 {[%emt 0:00:30] [#]} Bg6 $11 {[%emt 0:12:10]} (29... Ra6 $1 $17 30. Ne4 Rd8) 30. d5 {[%emt 0:08:30]} cxd5 {[%emt 0:01:38]} 31. Qxd5 {[%emt 0:00:30]} Qe7 {[%emt 0:01:42]} 32. h4 {[%emt 0:04:30]} Rd8 {[%emt 0:01:35]} 33. Qb5 {[%emt 0:00:30]} Rac8 {[%emt 0:01:43]} 34. Qxa5 {[%emt 0:02:30]} Ne6 {[%emt 0:00:05]} 35. c5 {[%emt 0:02:30]} f5 {[%emt 0:00:41]} 36. Qxb4 {[%emt 0:01:30]} f4 {[%emt 0:01:05]} 37. Bxf4 {[%emt 0:01:30]} Nxc5 {[%emt 0:00:57]} 38. Qc3 {[%emt 0:06:31]} Bf5 {[%emt 0:00:45]} 39. Nc4 {[%emt 0:01:32]} Nd3 {[%emt 0:00:52]} 40. Rd1 {[%emt 0:04:11]} Nxf4 {[%emt 0:00:05]} 41. Rxd8+ {[%emt 0:00:28]} Rxd8 {[%emt 0:00:05]} 42. Qf3 {[%emt 0:00:06]} Nxg2 {[%emt 0:00:22]} 43. Qxf5 {[%emt 0:01:38]} Ne1 {[%emt 0:00:05]} 44. a4 {[%emt 0:00:00]} Qb7 {[%emt 0:00:19]} 0-1

[Event "Turkish Youth Championship 2024"]
[Site "Samsun"]
[Date "2024.05.19"]
[Round "2"]
[White "Tosun, Aysu"]
[Black "Selvi, Kaan"]
[Result "0-1"]
[ECO "B06"]
[WhiteElo "1523"]
[BlackElo "1881"]
[Annotator "NA RC"]
[PlyCount "68"]
[EventDate "2024.05.18"]
[EventType "swiss"]
[EventCountry "TUR"]
[SourceTitle "playchess.com"]
[Source "ChessBase"]
[SourceQuality "1"]
[TimeControl "5400+30"]

1. e4 {[%emt 0:01:00]} g6 {[%emt 0:01:00]} 2. d4 {[%emt 0:00:30]} c6 {[%emt 0:00:00]} 3. f3 {[%emt 0:01:30]} Bg7 {[%emt 0:00:00]} 4. c4 {[%emt 0:00:30]} d5 {[%emt 0:00:30]} 5. cxd5 {[%emt 0:03:30]} cxd5 {[%emt 0:00:30]} 6. e5 {[%emt 0:03:30] B06: Modern Defence.} Nc6 {[%emt 0:00:30]} 7. Nc3 {[%emt 0:00:30]} Nh6 {[%emt 0:08:30]} 8. Bb5 {[%emt 0:04:30]} O-O {[%emt 0:03:30]} 9. Nge2 {[%emt 0:07:30]} a6 {[%emt 0:01:30]} 10. Ba4 {[%emt 0:04:30]} b5 {[%emt 0:02:30]} 11. Bb3 {[%emt 0:01:30]} e6 {[%emt 0:00:30]} 12. Be3 {[%emt 0:04:30]} Nf5 {[%emt 0:06:30]} 13. Bf2 {[%emt 0:00:30]} Qg5 {[%emt 0:00:30]} 14. g4 {[%emt 0:11:30]} Nh4 {[%emt 0:07:30]} 15. Ng1 {[%emt 0:07:30]} Ng2+ {[%emt 0:06:30]} 16. Ke2 {[%emt 0:02:30]} Nf4+ {[%emt 0:12:30]} 17. Kf1 {[%emt 0:00:30]} Qd8 {[%emt 0:02:30]} 18. Be3 {[%emt 0:08:30]} g5 {[%emt 0:00:30] [#]} 19. h4 $1 {[%emt 0:02:30]} f5 {[%emt 0:04:30]} 20. gxf5 {[%emt 0:05:30]} Rxf5 {[%emt 0:00:30]} 21. Bc2 {[%emt 0:01:30]} Rf7 {[%emt 0:01:30]} 22. Qd2 {[%emt 0:03:30]} Nh5 {[%emt 0:01:30]} 23. Bxg5 {[%emt 0:04:43]} Qb6 {[%emt 0:00:00]} 24. Rh2 {[%emt 0:02:53]} Qxd4 {[%emt 0:01:00]} 25. Qg2 {[%emt 0:02:22]} Nxe5 {[%emt 0:02:30]} 26. Rd1 {[%emt 0:01:55]} Qc4+ {[%emt 0:00:30]} 27. Ke1 {[%emt 0:00:40]} Bb7 {[%emt 0:02:30]} 28. Be3 {[%emt 0:06:07]} Nf4 {[%emt 0:04:30]} 29. Qg5 $19 {[%emt 0:01:30]} Ned3+ {[%emt 0:01:30]} 30. Kd2 {[%emt 0:01:22]} d4 {[%emt 0:03:30]} 31. Bxd4 {[%emt 0:06:01]} Qxd4 {[%emt 0:00:30]} 32. Nge2 {[%emt 0:00:39]} Nxe2 {[%emt 0:01:30]} 33. Nxe2 {[%emt 0:00:20]} Qb4+ {[%emt 0:00:30]} 34. Kxd3 {[%emt 0:00:32]} Rxf3+ {[%emt 0:00:30]} 0-1

[Event "Turkish Youth Championship 2024"]
[Site "Samsun"]
[Date "2024.05.19"]
[Round "2"]
[White "Akyuz, Pars"]
[Black "Basara, Arda"]
[Result "1-0"]
[ECO "D18"]
[WhiteElo "1461"]
[BlackElo "1943"]
[Annotator "RC"]
[PlyCount "97"]
[EventDate "2024.05.18"]
[EventType "swiss"]
[EventCountry "TUR"]
[SourceTitle "playchess.com"]
[Source "ChessBase"]
[SourceQuality "1"]
[TimeControl "5400+30"]

1. d4 {[%emt 0:01:00]} d5 {[%emt 0:01:00]} 2. c4 {[%emt 0:00:00]} c6 {[%emt 0:00:30]} 3. Nc3 {[%emt 0:00:00]} Nf6 {[%emt 0:00:00]} 4. Nf3 {[%emt 0:00:30]} dxc4 {[%emt 0:01:00]} 5. a4 {[%emt 0:00:00]} Bf5 {[%emt 0:00:30]} 6. e3 {[%emt 0:00:00]} e6 {[%emt 0:00:30]} 7. Bxc4 {[%emt 0:00:30]} Bb4 {[%emt 0:00:00]} 8. O-O {[%emt 0:00:30]} Nbd7 {[%emt 0:00:00]} 9. Nd2 {[%emt 0:02:30]} O-O {[%emt 0:10:30]} 10. Re1 {[%emt 0:00:00]} c5 {[%emt 0:26:30]} 11. Na2 {[%emt 0:04:00]} Bxd2 {[%emt 0:02:30]} 12. Qxd2 {[%emt 0:02:30]} Nb6 {[%emt 0:03:30]} 13. Bb3 {[%emt 0:02:30]} Ne4 {[%emt 0:09:30]} 14. Qd1 {[%emt 0:00:30]} Qh4 {[%emt 0:01:30]} 15. Qe2 {[%emt 0:02:30]} cxd4 {[%emt 0:07:30]} 16. exd4 {[%emt 0:01:30]} Rfd8 {[%emt 0:00:30]} 17. Be3 {[%emt 0:00:30]} Nf6 {[%emt 0:01:30]} 18. Nc3 {[%emt 0:01:30]} Nbd5 {[%emt 0:02:30]} 19. Nxd5 {[%emt 0:03:30]} Nxd5 {[%emt 0:00:30]} 20. Bxd5 {[%emt 0:04:30]} Rxd5 {[%emt 0:00:30]} 21. Rac1 {[%emt 0:00:30]} Qe7 {[%emt 0:04:30]} 22. Rc3 {[%emt 0:00:30]} Qb4 {[%emt 0:02:30]} 23. Ra1 {[%emt 0:06:30]} Rad8 {[%emt 0:00:30]} 24. Rc4 {[%emt 0:08:30]} Qd6 {[%emt 0:02:30]} 25. h3 {[%emt 0:02:30]} Qa6 {[%emt 0:03:21]} 26. b3 {[%emt 0:08:30]} h6 {[%emt 0:02:14]} 27. Qb2 {[%emt 0:01:30]} R5d7 {[%emt 0:02:28]} 28. Rac1 {[%emt 0:00:30]} Be4 {[%emt 0:00:37]} 29. Re1 {[%emt 0:03:30]} Bd5 {[%emt 0:00:21]} 30. Rc3 {[%emt 0:00:30]} b5 {[%emt 0:01:00]} 31. Qe2 {[%emt 0:08:30]} Rb7 {[%emt 0:04:47]} 32. Qg4 {[%emt 0:02:30]} Kf8 {[%emt 0:00:53]} 33. Bf4 {[%emt 0:05:30]} bxa4 {[%emt 0:02:44]} 34. bxa4 {[%emt 0:01:30]} Qxa4 {[%emt 0:00:58]} 35. Rg3 {[%emt 0:01:30]} f5 {[%emt 0:01:02]} 36. Qg6 {[%emt 0:02:30]} Qe8 {[%emt 0:01:04]} 37. Qh7 {[%emt 0:02:30]} Qf7 {[%emt 0:00:42]} 38. Rxg7 {[%emt 0:03:30]} Qxg7 {[%emt 0:01:35]} 39. Bxh6 {[%emt 0:00:30]} Qxh6 {[%emt 0:01:11]} 40. Qxh6+ {[%emt 0:00:00]} Ke7 {[%emt 0:00:45]} 41. Rc1 {[%emt 0:03:37]} Kd6 {[%emt 0:00:01]} 42. Qg5 {[%emt 0:03:52]} Ra8 {[%emt 0:00:37]} 43. Qg3+ {[%emt 0:01:13]} Kd7 {[%emt 0:00:08]} 44. Qg7+ {[%emt 0:00:56]} Kd6 {[%emt 0:00:08]} 45. Qe5+ {[%emt 0:00:26]} Kd7 {[%emt 0:00:04]} 46. Rc5 {[%emt 0:00:44]} Rab8 {[%emt 0:00:57]} 47. Kh2 {[%emt 0:01:43]} Re8 {[%emt 0:02:22]} 48. Rxd5+ {[%emt 0:00:56]} exd5 {[%emt 0:00:30]} 49. Qxd5+ {[%emt 0:00:09]} 1-0

[Event "Turkish Youth Championship 2024"]
[Site "Samsun"]
[Date "2024.05.19"]
[Round "3"]
[White "Cilek, Bora"]
[Black "Cetindag, Alper"]
[Result "1/2-1/2"]
[ECO "A35"]
[WhiteElo "2246"]
[BlackElo "1839"]
[Annotator "RC"]
[PlyCount "51"]
[EventDate "2024.05.18"]
[EventType "swiss"]
[EventCountry "TUR"]
[SourceTitle "playchess.com"]
[Source "ChessBase"]
[SourceQuality "1"]
[TimeControl "5400+30"]

1. c4 {[%emt 0:01:00]} c5 {[%emt 0:01:00]} 2. Nc3 {[%emt 0:00:30]} Nc6 {[%emt 0:00:30]} 3. Nf3 {[%emt 0:00:00]} g6 {[%emt 0:00:30]} 4. e3 {[%emt 0:00:00]} Nf6 {[%emt 0:00:30]} 5. d4 {[%emt 0:00:00]} cxd4 {[%emt 0:01:30]} 6. exd4 {[%emt 0:00:00]} d5 {[%emt 0:00:00]} 7. cxd5 {[%emt 0:00:30]} Nxd5 {[%emt 0:00:00]} 8. Qb3 {[%emt 0:00:00]} Nxc3 {[%emt 0:02:30]} 9. Bc4 {[%emt 0:00:00]} e6 {[%emt 0:10:30]} 10. bxc3 {[%emt 0:00:00]} Bg7 {[%emt 0:02:30]} 11. Ba3 {[%emt 0:00:00]} a6 {[%emt 0:02:30]} 12. Be2 {[%emt 0:01:30]} b5 {[%emt 0:01:30]} 13. O-O {[%emt 0:02:30]} Na5 {[%emt 0:02:30]} 14. Qd1 {[%emt 0:03:30]} Bb7 {[%emt 0:01:30]} 15. Bc5 {[%emt 0:00:00]} Qd5 {[%emt 0:01:30]} 16. a4 {[%emt 0:01:00]} Nb3 {[%emt 0:01:30]} 17. axb5 {[%emt 0:03:30]} Nxc5 {[%emt 0:05:30]} 18. dxc5 {[%emt 0:01:30]} axb5 {[%emt 0:01:30]} 19. Rxa8+ {[%emt 0:11:30]} Bxa8 {[%emt 0:00:30]} 20. Bxb5+ {[%emt 0:00:00]} Ke7 {[%emt 0:00:00]} 21. Qa4 {[%emt 0:02:00]} Qxc5 {[%emt 0:07:00]} 22. Rd1 {[%emt 0:00:30]} Bd5 {[%emt 0:00:30]} 23. c4 {[%emt 0:17:30]} Ra8 {[%emt 0:00:30]} 24. Qc2 {[%emt 0:00:30]} Bxf3 {[%emt 0:00:30]} 25. gxf3 {[%emt 0:02:30]} Ra1 {[%emt 0:00:30]} 26. Rxa1 {[%emt 0:01:30]} 1/2-1/2

[Event "Turkish Youth Championship 2024"]
[Site "Samsun"]
[Date "2024.05.19"]
[Round "3"]
[White "Atis, Hasan"]
[Black "Ucar, Umut Can"]
[Result "1-0"]
[ECO "C10"]
[WhiteElo "2014"]
[BlackElo "1799"]
[Annotator "NA COMBH"]
[PlyCount "45"]
[EventDate "2024.05.18"]
[EventType "swiss"]
[EventCountry "TUR"]
[SourceTitle "playchess.com"]
[Source "ChessBase"]
[SourceQuality "1"]
[TimeControl "5400+30"]

1. e4 {[%emt 0:01:00]} e6 {[%emt 0:01:00]} 2. d4 {[%emt 0:00:30]} d5 {[%emt 0:00:30]} 3. Nd2 {[%emt 0:00:30]} dxe4 {[%emt 0:00:30]} 4. Nxe4 {[%emt 0:00:30]} Be7 {[%emt 0:00:00]} 5. Nf3 {[%emt 0:00:00]} Nf6 {[%emt 0:00:00]} 6. Bd3 {[%emt 0:00:00]} Bd7 {[%emt 0:00:00]} 7. Qe2 {[%emt 0:01:30]} Bc6 {[%emt 0:00:00]} 8. Nxf6+ {[%emt 0:01:30]} Bxf6 {[%emt 0:00:00]} 9. c3 {[%emt 0:00:00]} Nd7 {[%emt 0:00:00]} 10. Bf4 {[%emt 0:00:00]} b6 {[%emt 0:01:30]} 11. O-O-O {[%emt 0:01:30]} Nf8 {[%emt 0:01:30]} 12. h4 {[%emt 0:01:30]} Ng6 {[%emt 0:01:30]} 13. Bg3 {[%emt 0:01:30]} Qd5 {[%emt 0:02:30]} 14. c4 {[%emt 0:09:30]} Qa5 {[%emt 0:02:30]} 15. d5 {[%emt 0:00:30]} Bd7 {[%emt 0:00:30]} 16. h5 {[%emt 0:02:30]} Ne7 {[%emt 0:02:30]} 17. Ne5 {[%emt 0:00:00]} Qxa2 {[%emt 0:02:30]} 18. Nxd7 {[%emt 0:01:00]} Kxd7 {[%emt 0:02:30]} 19. dxe6+ {[%emt 0:00:30]} Ke8 {[%emt 0:00:00]} 20. Be5 {[%emt 0:02:30]} Kf8 {[%emt 0:07:00]} 21. Bxf6 {[%emt 0:00:00]} gxf6 {[%emt 0:00:30]} 22. Qf3 {[%emt 0:00:00]} Kg7 {[%emt 0:00:30]} 23. h6+ {[%emt 0:00:00]} 1-0

[Event "Turkish Youth Championship 2024"]
[Site "Samsun"]
[Date "2024.05.19"]
[Round "3"]
[White "Tirpan, Ceren"]
[Black "Develi, Kemal Cagan"]
[Result "1-0"]
[ECO "A11"]
[WhiteElo "2004"]
[BlackElo "1723"]
[Annotator "NA RC"]
[PlyCount "125"]
[EventDate "2024.05.18"]
[EventType "swiss"]
[EventCountry "TUR"]
[SourceTitle "playchess.com"]
[Source "ChessBase"]
[SourceQuality "1"]
[TimeControl "5400+30"]

1. c4 {[%emt 0:01:00]} c6 {[%emt 0:01:00]} 2. g3 {[%emt 0:00:00]} d5 {[%emt 0:01:30]} 3. Bg2 {[%emt 0:00:00]} Nf6 {[%emt 0:00:30]} 4. Nf3 {[%emt 0:00:30]} g6 {[%emt 0:00:30]} 5. b3 {[%emt 0:00:30]} Bg7 {[%emt 0:00:30]} 6. Bb2 {[%emt 0:00:00]} O-O {[%emt 0:00:00]} 7. O-O {[%emt 0:01:00]} Bg4 {[%emt 0:00:00]} 8. d3 {[%emt 0:02:30]} Bxf3 {[%emt 0:01:30]} 9. Bxf3 {[%emt 0:00:30]} Nbd7 {[%emt 0:01:30]} 10. Nd2 {[%emt 0:07:30]} e5 {[%emt 0:09:30]} 11. Qc2 {[%emt 0:02:30]} d4 {[%emt 0:08:30]} 12. b4 {[%emt 0:05:30]} Qc7 {[%emt 0:09:30]} 13. c5 {[%emt 0:18:30]} Nd5 {[%emt 0:04:30]} 14. Qb3 {[%emt 0:04:30]} N7f6 {[%emt 0:04:30]} 15. Nc4 {[%emt 0:07:30]} Rae8 {[%emt 0:05:30]} 16. Bg2 {[%emt 0:04:30]} h5 {[%emt 0:06:30]} 17. Rae1 {[%emt 0:08:30]} h4 {[%emt 0:02:30]} 18. e4 {[%emt 0:04:30]} dxe3 {[%emt 0:00:30]} 19. Nxe3 {[%emt 0:00:00]} Nxe3 {[%emt 0:00:30]} 20. Rxe3 {[%emt 0:00:00]} hxg3 {[%emt 0:00:30]} 21. fxg3 {[%emt 0:00:30]} Kh8 {[%emt 0:01:30]} 22. Qc4 {[%emt 0:02:30]} Nh5 {[%emt 0:01:30]} 23. Bf3 {[%emt 0:03:30]} f5 {[%emt 0:01:30]} 24. Bxh5 {[%emt 0:01:30]} gxh5 {[%emt 0:00:30]} 25. Ref3 {[%emt 0:02:30]} Qd7 {[%emt 0:03:30]} 26. Qh4 {[%emt 0:00:30]} Qf7 {[%emt 0:00:30]} 27. Qg5 {[%emt 0:02:30]} Qxa2 {[%emt 0:00:30]} 28. Qxh5+ {[%emt 0:00:30]} Kg8 {[%emt 0:00:30]} 29. R1f2 {[%emt 0:01:30]} Qd5 {[%emt 0:01:30]} 30. Rxf5 {[%emt 0:00:40]} Qxd3 {[%emt 0:00:00]} 31. Bxe5 {[%emt 0:10:39]} Rxf5 {[%emt 0:01:00]} 32. Qxe8+ {[%emt 0:00:35]} Kh7 {[%emt 0:00:30]} 33. Rxf5 {[%emt 0:00:14]} Qxf5 {[%emt 0:00:30]} 34. Bxg7 {[%emt 0:00:12]} Kxg7 {[%emt 0:01:30]} 35. Qe7+ {[%emt 0:00:13]} Kg6 {[%emt 0:00:30]} 36. Qd6+ {[%emt 0:01:14]} Kg7 {[%emt 0:00:30]} 37. Qf4 {[%emt 0:00:49]} Qb1+ {[%emt 0:00:30]} 38. Kg2 {[%emt 0:00:02]} Qc2+ {[%emt 0:01:30]} 39. Kh3 {[%emt 0:00:06]} Qh7+ {[%emt 0:00:30]} 40. Qh4 {[%emt 0:00:38]} Qb1 {[%emt 0:00:30]} 41. Qg4+ {[%emt 0:00:20]} Kf6 {[%emt 0:00:30]} 42. Qf4+ {[%emt 0:00:26]} Kg6 {[%emt 0:00:30]} 43. g4 {[%emt 0:00:20]} Qd3+ {[%emt 0:00:30]} 44. Kh4 {[%emt 0:00:13]} Qe2 {[%emt 0:01:30]} 45. Qd6+ {[%emt 0:01:25]} Kg7 {[%emt 0:01:30]} 46. Kg5 {[%emt 0:00:35]} Qe3+ {[%emt 0:00:30]} 47. Qf4 {[%emt 0:00:06]} Qe7+ {[%emt 0:00:30]} 48. Kh5 {[%emt 0:00:04]} Qe8+ {[%emt 0:00:00]} 49. Kh4 {[%emt 0:00:06]} Qe1+ {[%emt 0:00:00]} 50. Kh3 {[%emt 0:01:50]} Qc3+ {[%emt 0:00:30]} 51. Kg2 {[%emt 0:00:04]} Qc2+ {[%emt 0:00:30]} 52. Kf3 {[%emt 0:00:16]} Qd3+ {[%emt 0:00:30]} 53. Qe3 {[%emt 0:00:24]} Qf1+ {[%emt 0:00:30]} 54. Ke4 {[%emt 0:00:20]} Qh1+ {[%emt 0:00:30]} 55. Kf5 {[%emt 0:00:28]} Qf1+ {[%emt 0:00:30]} 56. Qf4 {[%emt 0:00:36]} Qd3+ {[%emt 0:00:30]} 57. Ke6 {[%emt 0:00:20]} Qg6+ {[%emt 0:01:30]} 58. Ke7 {[%emt 0:00:11]} Qd3 {[%emt 0:01:30]} 59. Qg5+ {[%emt 0:00:16]} Kh8 {[%emt 0:00:30]} 60. Qh6+ {[%emt 0:00:05]} Kg8 {[%emt 0:00:30]} 61. Qf8+ {[%emt 0:00:04]} Kh7 {[%emt 0:00:30]} 62. Qf5+ {[%emt 0:00:08]} Qxf5 {[%emt 0:00:30]} 63. gxf5 {[%emt 0:00:05]} 1-0

[Event "Turkish Youth Championship 2024"]
[Site "Samsun"]
[Date "2024.05.19"]
[Round "3"]
[White "Zerey, Demhat"]
[Black "Nurdogan, Ilgin Destina"]
[Result "1-0"]
[ECO "D02"]
[WhiteElo "1986"]
[BlackElo "1699"]
[Annotator "NA RC"]
[PlyCount "147"]
[EventDate "2024.05.18"]
[EventType "swiss"]
[EventCountry "TUR"]
[SourceTitle "playchess.com"]
[Source "ChessBase"]
[SourceQuality "1"]
[TimeControl "5400+30"]

1. d4 {[%emt 0:01:00]} Nf6 {[%emt 0:01:00]} 2. Bf4 {[%emt 0:00:30]} e6 {[%emt 0:00:00]} 3. e3 {[%emt 0:00:00]} d5 {[%emt 0:03:00]} 4. Nf3 {[%emt 0:00:00]} Bd6 {[%emt 0:00:30]} 5. Ne5 {[%emt 0:00:00]} c5 {[%emt 0:01:30]} 6. c3 {[%emt 0:01:00]} O-O {[%emt 0:01:30]} 7. Nd2 {[%emt 0:00:30]} Nc6 {[%emt 0:01:30]} 8. Bd3 {[%emt 0:00:30]} c4 {[%emt 0:03:30]} 9. Bc2 {[%emt 0:05:30]} Qc7 {[%emt 0:00:00]} 10. Ndf3 {[%emt 0:01:30]} b5 {[%emt 0:00:00]} 11. O-O {[%emt 0:10:30]} a5 {[%emt 0:02:30]} 12. Re1 {[%emt 0:03:30]} Bb7 {[%emt 0:01:30]} 13. Nxc6 {[%emt 0:06:30]} Bxc6 {[%emt 0:00:30]} 14. Ne5 {[%emt 0:02:30]} b4 {[%emt 0:02:30]} 15. Qf3 {[%emt 0:09:30]} b3 {[%emt 0:06:30]} 16. axb3 {[%emt 0:04:30]} cxb3 {[%emt 0:00:30]} 17. Bxb3 {[%emt 0:01:30]} Rfb8 {[%emt 0:00:00]} 18. Qd1 {[%emt 0:03:30]} Be8 {[%emt 0:02:00]} 19. Nd3 {[%emt 0:05:30]} Bxf4 {[%emt 0:02:30]} 20. exf4 {[%emt 0:01:30]} Bb5 {[%emt 0:02:30]} 21. Ne5 {[%emt 0:02:30]} a4 {[%emt 0:00:30]} 22. Bxa4 {[%emt 0:02:30]} Bxa4 {[%emt 0:00:30]} 23. Rxa4 {[%emt 0:00:30]} Rxa4 {[%emt 0:00:30]} 24. Qxa4 {[%emt 0:00:00]} Rxb2 {[%emt 0:00:30]} 25. Qa3 {[%emt 0:03:00]} Qb7 {[%emt 0:04:30]} 26. Nd3 {[%emt 0:05:30]} Rb1 {[%emt 0:02:30]} 27. g3 {[%emt 0:04:30]} Rxe1+ {[%emt 0:01:30]} 28. Nxe1 {[%emt 0:00:30]} g6 {[%emt 0:00:30]} 29. f3 {[%emt 0:02:30]} Qb5 {[%emt 0:01:30]} 30. Kf2 {[%emt 0:00:00]} h5 {[%emt 0:01:30]} 31. h4 {[%emt 0:01:00]} Qb1 {[%emt 0:00:30]} 32. Qa4 {[%emt 0:01:30]} Qc1 {[%emt 0:00:30]} 33. Qc2 {[%emt 0:00:30]} Qa1 {[%emt 0:01:30]} 34. Ng2 {[%emt 0:00:30]} Kg7 {[%emt 0:00:30]} 35. Ne3 {[%emt 0:00:00]} Kg8 {[%emt 0:01:30]} 36. Nd1 {[%emt 0:00:00]} Kg7 {[%emt 0:00:30]} 37. Ke1 {[%emt 0:00:30]} Qa6 {[%emt 0:01:30]} 38. Qe2 {[%emt 0:01:30]} Qa5 {[%emt 0:01:30]} 39. Qd2 {[%emt 0:00:30]} Qa6 {[%emt 0:00:30]} 40. Kf2 {[%emt 0:00:30]} Qa1 {[%emt 0:01:30]} 41. Ne3 {[%emt 0:00:00]} Qb1 {[%emt 0:00:30]} 42. Kg2 {[%emt 0:00:00]} Qa1 {[%emt 0:01:30]} 43. f5 {[%emt 0:01:30]} Qa6 {[%emt 0:02:30]} 44. fxe6 {[%emt 0:02:30]} fxe6 {[%emt 0:00:30]} 45. Nd1 {[%emt 0:00:30]} Ne8 {[%emt 0:01:30]} 46. Nf2 {[%emt 0:00:00]} Nf6 {[%emt 0:00:30]} 47. Nd3 {[%emt 0:00:00]} Nd7 {[%emt 0:03:30]} 48. Nf4 {[%emt 0:00:30]} Nf8 {[%emt 0:02:30]} 49. Nd3 {[%emt 0:01:30]} Nd7 {[%emt 0:00:30]} 50. Qc2 {[%emt 0:00:00]} Qc6 {[%emt 0:01:30]} 51. Nf4 {[%emt 0:00:00]} Nf8 {[%emt 0:00:30]} 52. Qd3 {[%emt 0:00:30]} Qa4 {[%emt 0:01:30]} 53. Qe2 {[%emt 0:00:30]} Qc6 {[%emt 0:00:00]} 54. Qe3 {[%emt 0:00:00]} Qb6 {[%emt 0:01:00]} 55. g4 {[%emt 0:01:00]} hxg4 {[%emt 0:11:30]} 56. fxg4 {[%emt 0:00:30]} Qb2+ {[%emt 0:00:30]} 57. Kg3 {[%emt 0:00:30]} Qb1 {[%emt 0:02:30]} 58. h5 {[%emt 0:00:30]} g5 {[%emt 0:01:30]} 59. Nh3 {[%emt 0:00:30]} Qb8+ {[%emt 0:01:30]} 60. Kg2 {[%emt 0:01:30]} Qb2+ {[%emt 0:00:00]} 61. Kf3 {[%emt 0:00:30]} Qh2 {[%emt 0:03:00]} 62. Nxg5 {[%emt 0:00:30]} Qh1+ {[%emt 0:00:30]} 63. Kg3 {[%emt 0:00:00]} Qb1 {[%emt 0:00:30]} 64. Nf3 {[%emt 0:02:00]} Qh7 {[%emt 0:02:30]} 65. Ne5 {[%emt 0:00:30]} Kf6 {[%emt 0:01:30]} 66. h6 {[%emt 0:00:30]} Ke7 {[%emt 0:01:30]} 67. Qg5+ {[%emt 0:00:30]} Ke8 {[%emt 0:01:30]} 68. Qg7 Qb1 {[%emt 0:00:30]} 69. Qf7+ {[%emt 0:00:00]} Kd8 {[%emt 0:00:00]} 70. Qxf8+ {[%emt 0:00:00]} Kc7 {[%emt 0:00:00]} 71. Qc5+ {[%emt 0:00:00]} Kd8 {[%emt 0:00:30]} 72. Qd6+ {[%emt 0:00:00]} Kc8 {[%emt 0:00:30]} 73. Qd7+ {[%emt 0:00:00]} Kb8 {[%emt 0:00:30]} 74. Nc6+ {[%emt 0:00:30]} 1-0